[Event "FISU WUMSCC Men 2024"]
[Site "Entebbe"]
[Date "2024.06.27"]
[Round "4.8"]
[White "Almuntasir, mohamed khalifah"]
[Black "Alinda Collins"]
[Result "1-0"]
[ECO "C00"]
[WhiteElo "1724"]
[BlackElo "1845"]
[Annotator "NA RC"]
[PlyCount "71"]
[EventDate "2024.06.24"]
[EventType "swiss"]
[EventCountry "UGA"]
[SourceTitle "playchess.com"]
[Source "ChessBase"]
[SourceQuality "1"]
[TimeControl "5400+30"]

1. e4 {[%emt 1:31:00]} e6 {[%emt 0:01:16]} 2. d3 {[%emt 0:00:00]} d5 3. Nd2 {[%emt 0:00:00]} c5 {[%emt 0:00:52]} 4. g3 {[%emt 0:00:00]} Nc6 {[%emt 0:00:46]} 5. Bg2 {[%emt 0:00:00]} Nf6 {[%emt 0:00:27]} 6. Ngf3 {[%emt 0:00:00]} Be7 {[%emt 0:01:02]} 7. O-O {[%emt 0:00:00]} O-O {[%emt 0:00:18]} 8. Re1 {[%emt 0:00:00]} Qc7 {[%emt 0:00:55]} 9. e5 {[%emt 0:00:00]} Nd7 {[%emt 0:01:18]} 10. Qe2 {[%emt 0:00:00]} Nb4 {[%emt 0:00:54]} 11. Nf1 {[%emt 0:00:00] C00: French: Unusual White 2nd moves.} b5 {[%emt 0:02:25]} 12. Bf4 {[%emt 0:00:00]} Bb7 {[%emt 0:01:29]} 13. a3 {[%emt 0:00:00]} Nc6 {[%emt 0:00:16]} 14. h4 {[%emt 0:00:00]} Qb6 {[%emt 0:01:07]} 15. h5 {[%emt 0:00:00]} h6 {[%emt 0:00:49]} 16. N1h2 {[%emt 0:00:00]} c4 {[%emt 0:01:14]} 17. Ng4 {[%emt 0:00:00]} Rfe8 {[%emt 0:21:25]} (17... cxd3 $11 {remains equal.} 18. Qxd3 Nc5) 18. Nh4 {[%emt 0:00:00]} Bxh4 {[%emt 0:08:07]} 19. gxh4 {[%emt 0:00:00]} Nd4 {[%emt 0:05:20]} 20. Qd2 {[%emt 0:00:00]} Nf5 {[%emt 0:00:20]} 21. Nxh6+ {[%emt 0:00:00]} Kf8 $4 {[%emt 0:10:10]} (21... Nxh6 $2 {loses.} 22. Bxh6 Kh7 (22... gxh6 23. Qxh6 Qd4 24. Re3 $16) 23. Bf4 $18) (21... gxh6 $19 {and life is good for Black.} 22. Bxh6 d4 (22... Nxh4 $2 23. Qg5+ $18)) 22. Nxf5 {[%emt 0:00:00]} exf5 {[%emt 0:00:14]} 23. d4 {[%emt 0:00:00]} Kg8 {[%emt 0:02:04]} 24. Re3 {[%emt 0:00:00]} Kh7 {[%emt 0:00:45]} 25. Bh3 {[%emt 0:00:00]} Qe6 {[%emt 0:02:24]} 26. Kh2 {[%emt 0:00:00]} Rg8 {[%emt 0:01:26]} 27. Rg1 {[%emt 0:00:00]} g6 {[%emt 0:01:14]} 28. Rg5 {[%emt 0:00:00]} Rg7 {[%emt 0:01:11]} 29. hxg6+ {[%emt 0:00:00]} fxg6 {[%emt 0:00:43]} 30. h5 {[%emt 0:00:00]} Rf8 {[%emt 0:00:36]} 31. Reg3 {[%emt 0:00:00]} Kh8 {[%emt 0:01:24]} 32. Rxg6 {[%emt 0:00:00]} Rxg6 {[%emt 0:00:17]} 33. Rxg6 {[%emt 0:00:00]} Qe7 {[%emt 0:00:39]} 34. Bg5 {[%emt 0:00:00]} Qe8 {[%emt 0:01:07]} 35. Bh4 {[%emt 0:00:00]} Rf7 {[%emt 0:01:03]} 36. e6 {[%emt 0:00:00]} 1-0

[Event "FISU WUMSCC Men 2024"]
[Site "Entebbe"]
[Date "2024.06.27"]
[Round "4.9"]
[White "Musasizi, Emmanuel"]
[Black "Mthembu, Lovers"]
[Result "0-1"]
[ECO "A05"]
[WhiteElo "1966"]
[BlackElo "1876"]
[Annotator "RC"]
[PlyCount "108"]
[EventDate "2024.06.24"]
[EventType "swiss"]
[EventCountry "UGA"]
[SourceTitle "playchess.com"]
[Source "ChessBase"]
[SourceQuality "1"]
[TimeControl "5400+30"]

1. Nf3 {[%emt 0:01:42]} Nf6 {[%emt 0:00:20]} 2. g3 {[%emt 0:04:58]} g6 {[%emt 0:00:06]} 3. Bg2 {[%emt 0:00:04]} Bg7 {[%emt 0:00:02]} 4. O-O {[%emt 0:00:07]} O-O {[%emt 0:00:05]} 5. Re1 {[%emt 0:00:06]} c5 {[%emt 0:00:42]} 6. e4 {[%emt 0:00:09]} d6 {[%emt 0:00:10]} 7. d3 {[%emt 0:00:37]} Nc6 8. Nbd2 Qc7 {[%emt 0:04:54]} 9. Nf1 {[%emt 0:00:37]} Bd7 {[%emt 0:06:32]} 10. Bg5 {[%emt 0:00:55]} Ng4 {[%emt 0:00:50]} 11. c3 {[%emt 0:01:55]} Nge5 {[%emt 0:11:44]} 12. h4 {[%emt 0:03:57]} Rfe8 {[%emt 0:04:19]} 13. N3h2 {[%emt 0:00:52]} c4 {[%emt 0:10:47]} 14. d4 {[%emt 0:01:03]} Nd3 {[%emt 0:00:07]} 15. Re2 {[%emt 0:00:12]} e5 {[%emt 0:00:36]} 16. d5 {[%emt 0:02:51]} Ne7 {[%emt 0:00:10]} 17. Qd2 {[%emt 0:01:04]} b5 {[%emt 0:05:50]} 18. h5 {[%emt 0:02:30]} f5 {[%emt 0:16:47]} 19. h6 {[%emt 0:15:38]} Bh8 {[%emt 0:02:10]} 20. exf5 {[%emt 0:03:17]} gxf5 {[%emt 0:08:02]} 21. Bxe7 {[%emt 0:08:37]} Rxe7 {[%emt 0:00:05]} 22. Qg5+ {[%emt 0:00:18]} Kf8 {[%emt 0:00:02]} 23. Bf3 {[%emt 0:06:49]} Rf7 {[%emt 0:00:59]} 24. Bh5 {[%emt 0:00:56]} Bf6 {[%emt 0:00:16]} 25. Qd2 {[%emt 0:03:12]} Re7 {[%emt 0:00:07]} 26. Nf3 {[%emt 0:12:19]} Kg8 {[%emt 0:00:36]} 27. Ng5 {[%emt 0:02:26]} Rf8 {[%emt 0:02:28]} 28. b4 {[%emt 0:02:06]} Qb7 {[%emt 0:09:29]} 29. Ne6 {[%emt 0:06:16]} Bxe6 {[%emt 0:00:30]} 30. dxe6 {[%emt 0:00:44]} Rxe6 {[%emt 0:00:06]} 31. a4 {[%emt 0:01:33]} a6 {[%emt 0:02:22]} 32. axb5 {[%emt 0:00:34]} axb5 {[%emt 0:00:04]} 33. Qe3 {[%emt 0:02:11]} Re7 {[%emt 0:03:11]} 34. Rea2 {[%emt 0:01:34]} f4 {[%emt 0:05:13]} 35. Qe2 {[%emt 0:00:48]} fxg3 {[%emt 0:00:45]} 36. Qg4+ {[%emt 0:02:35]} Kh8 {[%emt 0:00:17]} 37. Ra7 {[%emt 0:03:30]} gxf2+ {[%emt 0:01:32]} 38. Kh2 {[%emt 0:00:27]} Qxa7 {[%emt 0:01:19]} 39. Rxa7 {[%emt 0:10:31]} Rxa7 {[%emt 0:00:05]} 40. Qe6 {[%emt 0:00:00]} Re7 {[%emt 0:00:34]} 41. Qxd6 {[%emt 0:00:00]} e4 {[%emt 0:00:09]} 42. Kh1 {[%emt 0:00:00]} Ne5 {[%emt 0:03:00]} 43. Qc5 {[%emt 0:00:00]} Bg5 {[%emt 0:01:17]} 44. Kg2 {[%emt 0:00:00]} e3 {[%emt 0:00:38]} 45. Ng3 {[%emt 0:00:00]} Rg8 {[%emt 0:02:54]} 46. Kf1 {[%emt 0:00:49]} Bh4 {[%emt 0:00:36]} 47. Ne2 {[%emt 0:00:36]} Bg5 {[%emt 0:00:29]} 48. Ng3 {[%emt 0:00:34]} Rf8 {[%emt 0:00:23]} 49. Ne4 {[%emt 0:00:41]} Ra8 {[%emt 0:00:36]} 50. Bd1 {[%emt 0:00:40]} Bh4 {[%emt 0:00:41]} 51. Qd6 {[%emt 0:01:02]} Rg8 {[%emt 0:00:26]} 52. Ke2 {[%emt 0:00:20]} Nf3 {[%emt 0:00:35]} 53. Qf4 {[%emt 0:01:16]} Rxe4 {[%emt 0:00:24]} 54. Qxe4 {[%emt 0:00:54]} f1=Q+ {[%emt 0:00:11]} 0-1

[Event "FISU WUMSCC Men 2024"]
[Site "Entebbe"]
[Date "2024.06.27"]
[Round "4.10"]
[White "Alrehaili, Ahmed Abdullah S"]
[Black "Hemeni, Simamnkele"]
[Result "1-0"]
[ECO "B50"]
[WhiteElo "2134"]
[BlackElo "1866"]
[Annotator "RC"]
[PlyCount "101"]
[EventDate "2024.06.24"]
[EventType "swiss"]
[EventCountry "UGA"]
[SourceTitle "playchess.com"]
[Source "ChessBase"]
[SourceQuality "1"]
[TimeControl "5400+30"]

1. e4 {[%emt 0:00:04]} c5 {[%emt 0:00:03]} 2. Nf3 {[%emt 0:00:24]} d6 {[%emt 0:00:02]} 3. c3 {[%emt 0:00:26]} Nf6 {[%emt 0:00:03]} 4. h3 {[%emt 0:00:13]} Nbd7 {[%emt 0:00:23]} 5. Bd3 {[%emt 0:00:13]} b6 {[%emt 0:00:33]} 6. O-O {[%emt 0:00:29]} Bb7 {[%emt 0:00:04]} 7. Re1 {[%emt 0:00:18]} Qc7 {[%emt 0:02:24]} 8. Bc2 {[%emt 0:01:29]} Rc8 {[%emt 0:00:57]} 9. Na3 {[%emt 0:03:05]} e6 10. d4 cxd4 {[%emt 0:04:01]} 11. Nb5 {[%emt 0:03:31]} Qc5 {[%emt 0:15:03]} 12. Nbxd4 {[%emt 0:01:59]} Be7 {[%emt 0:03:23]} 13. Be3 {[%emt 0:04:33]} Qh5 {[%emt 0:05:53]} 14. Qb1 {[%emt 0:18:11]} h6 {[%emt 0:08:59]} 15. Ne2 {[%emt 0:02:22]} Ne5 {[%emt 0:06:20]} 16. Nxe5 {[%emt 0:08:18]} dxe5 {[%emt 0:00:56]} 17. a4 {[%emt 0:04:00]} g5 {[%emt 0:07:13]} 18. f3 {[%emt 0:02:15]} Rg8 {[%emt 0:08:19]} 19. Ng3 {[%emt 0:13:07]} Qh4 {[%emt 0:02:47]} 20. Bf2 {[%emt 0:00:02]} Bc5 {[%emt 0:00:48]} 21. Bxc5 {[%emt 0:00:02]} bxc5 {[%emt 0:04:42]} 22. Nf1 {[%emt 0:01:19]} h5 {[%emt 0:00:57]} 23. g3 {[%emt 0:01:24]} Qxh3 {[%emt 0:13:02]} 24. Re2 {[%emt 0:00:01]} g4 {[%emt 0:00:49]} 25. Rh2 {[%emt 0:00:10]} Qxh2+ {[%emt 0:00:08]} 26. Nxh2 {[%emt 0:01:20]} gxf3 {[%emt 0:03:08]} 27. Nxf3 {[%emt 0:03:13]} Rxg3+ {[%emt 0:01:02]} 28. Kf2 {[%emt 0:00:04]} Rg7 {[%emt 0:00:59]} 29. Qf1 {[%emt 0:09:53]} Bxe4 {[%emt 0:04:04]} 30. Bxe4 {[%emt 0:00:43]} Nxe4+ {[%emt 0:00:04]} 31. Ke3 {[%emt 0:00:12]} Nd6 {[%emt 0:01:28]} 32. Nxe5 {[%emt 0:06:33]} Rb8 {[%emt 0:00:43]} 33. Rd1 {[%emt 0:01:39]} Nf5+ {[%emt 0:00:42]} 34. Kf4 {[%emt 0:00:08]} f6 {[%emt 0:00:50]} 35. Qh1 {[%emt 0:04:20]} fxe5+ {[%emt 0:01:53]} 36. Kxe5 {[%emt 0:00:01]} Ne7 {[%emt 0:00:40]} 37. Qxh5+ {[%emt 0:00:32]} Ng6+ {[%emt 0:01:50]} 38. Kf6 {[%emt 0:00:30]} Rbb7 {[%emt 0:00:36]} 39. Re1 {[%emt 0:06:35]} Rbf7+ {[%emt 0:00:45]} 40. Kxe6 {[%emt 0:00:01]} Re7+ {[%emt 0:00:59]} 41. Kf6 {[%emt 0:00:05]} Rxe1 {[%emt 0:01:15]} 42. Kxg7 {[%emt 0:00:12]} Re6 {[%emt 0:00:50]} 43. Qxc5 {[%emt 0:02:02]} Ne7 {[%emt 0:01:25]} 44. Qxa7 {[%emt 0:00:21]} Rg6+ {[%emt 0:00:29]} 45. Kh7 {[%emt 0:00:01]} Rd6 {[%emt 0:00:39]} 46. Qb8+ {[%emt 0:00:25]} Rd8 {[%emt 0:00:14]} 47. Qb5+ {[%emt 0:00:04]} Kf7 {[%emt 0:00:13]} 48. a5 {[%emt 0:00:33]} Rd5 {[%emt 0:00:41]} 49. Qc4 {[%emt 0:00:21]} Kf8 {[%emt 0:00:14]} 50. Qf4+ {[%emt 0:00:39]} Ke8 {[%emt 0:00:30]} 51. a6 {[%emt 0:00:20]} 1-0